Cogmind - Beta 10.2 @@@ ROGUE MODE // 2021.08.28 @ 12:58:57 Player: Coronach Result: Destroyed by G-34 Mercenary with Small Laser Performance ------------- Evolutions (1) 500 Regions Visited (4) 800 Robots Destroyed (30) 150 Value Destroyed (726) 726 Prototype IDs (5) 100 Alien Tech Used (0) 0 Bonus (0) 0 TOTAL SCORE: 2276 Bonus ------- None Cogmind --------- Core Integrity 0/400 Matter 291/300 Energy 98/100 System Corruption 0% Temperature Cool (6) Movement Core (50) Location -9/Mines Parts ------- > --- POWER (1) -------- (None) > --- PROPULSION (2) --- (None) > --- UTILITY (4) ------ Signal Interpreter Hacking Suite > --- WEAPON (2) ------- (None) > --- INVENTORY (4) ---- Large Storage Unit Heavy EM Pulse Gun Particle Gun Improved Medium Laser Peak State ------------ > --- POWER ------------ Heavy Ion Engine > --- PROPULSION ------- Light Treads Wheel > --- UTILITY ---------- Large Storage Unit High-capacity Storage Unit Structural Scanner Medium Armor Plating > --- WEAPON ----------- Heavy EM Pulse Gun Improved Light Cannon > --- INVENTORY -------- Improved Ion Engine Wheel Heat Sink Disposable Heat Sink Large Storage Unit Large Matter Pod Signal Interpreter ECM Suite Hacking Suite Heavy EM Pulse Gun Beam Rifle Spread Laser Improved Medium Laser Advanced Beam Cannon Autogun Autogun Mining Laser [Rating: 17] Favorites ----------- Power Ion Engine Engine Ion Engine Propulsion Compact Wheel Treads Light Treads Leg Aluminum Leg Wheel Compact Wheel Flight Unit Improved Flight Unit Utility Improved Terrain Scanner Device Improved Terrain Scanner Storage Large Storage Unit Processor Transport Network Coupler Hackware Hacking Suite Protection Medium Armor Plating Weapon Light Assault Rifle Energy Gun EM Shotgun Energy Cannon Advanced Beam Cannon Ballistic Gun Light Assault Rifle Ballistic Cannon Improved Light Cannon Build | -11 -10 -10 -9 -9 ------- Run | Scr Mat Min Mat Min Slots Evolved 2 | . . . 2 . Power . | . . . . . Propulsion . | . . . . . Utility 2 | . . . 2 . Weapon . | . . . . . Parts Attached 45 | 3 9 4 21 8 Power 4 | . 1 . 2 1 Engine 4 | . 1 . 2 1 Core . | . . . . . Reactor . | . . . . . Propulsion 9 | 2 3 . 4 . Treads 2 | . . . 2 . Leg . | . . . . . Wheel 6 | 2 3 . 1 . Hover . | . . . . . Flight 1 | . . . 1 . Utility 20 | 1 2 1 10 6 Device 8 | 1 . . 4 3 Storage 6 | . 2 1 3 . Processor 2 | . . . 1 1 Hackware 1 | . . . . 1 Protection 3 | . . . 2 1 Artifact . | . . . . . Weapon 12 | . 3 3 5 1 Energy Gun 7 | . 2 1 3 1 Energy Cannon 1 | . . . 1 . Ballistic Gun 3 | . 1 2 . . Ballistic Cannon 1 | . . . 1 . Launcher . | . . . . . Special Weapon . | . . . . . Impact Weapon . | . . . . . Slashing Weapon . | . . . . . Piercing Weapon . | . . . . . Special Melee Weapon . | . . . . . Unidentified Prototypes 3 | . . . 3 . Parts Lost 16 | . 4 1 4 7 Power 2 | . 1 . . 1 Propulsion 4 | . 1 . 1 2 Utility 2 | . . . 1 1 Weapon 8 | . 2 1 2 3 Highest Loss Streak 6 | . 2 1 3 6 Average Slot Usage (%) 91 | . 90 100 98 68 Engine 11 | . 14 14 11 4 Treads 3 | . . . 8 7 Wheel 19 | . 26 28 13 7 Device 13 | . 14 14 15 7 Storage 16 | . 14 14 22 14 Processor 2 | . . . 5 6 Energy Gun 8 | . 6 8 11 6 Ballistic Gun 9 | . 14 19 2 . Ballistic Cannon 3 | . . . 6 6 Naked Turns . | . . . . . Heaviest Build 71 | 12 26 42 64 71 Greatest Support 32 | 32 32 32 32 10 Greatest Overweight (x) 7 | . . 1 6 7 Average Overweight (x) 1 | . . . 4 1 Largest Inventory Capacity 18 | 6 10 12 18 18 Average Capacity 11 | 6 7 11 17 13 Most Carried 18 | 6 10 10 17 18 Average Carried 9 | 5 5 9 13 12 Final Capacity 18 | 6 10 12 18 4 Final Carried 17 | 5 10 9 17 4 Class Distribution -------------------- 81% | Mutant 18% | Scavenger-Mutant Dominant Class ---------------- Mutant | -10/Materials Mutant | -10/Mines Scavenger-Mutant | -9/Materials Mutant | -9/Mines Resources | -11 -10 -10 -9 -9 ----------- Run | Scr Mat Min Mat Min Matter Collected 986 | 248 318 76 269 75 Remotely . | . . . . . Salvage Created 1167 | 85 360 75 606 41 Parts 64 | 5 19 6 34 . Haulers Intercepted 4 | . 2 . 2 . Recyclers Shooed 1 | . 1 . . . Parts Field Recycled . | . . . . . Retrieved Matter . | . . . . . Parts Self-Destructed . | . . . . . Prevented . | . . . . . Kills | -11 -10 -10 -9 -9 ------- Run | Scr Mat Min Mat Min Combat Hostiles Destroyed 26 | . 6 5 11 4 Guns 20 | . 6 5 7 2 Cannons 5 | . . . 3 2 AOE 1 | . . . 1 . Classes Destroyed 9 | 2 3 1 2 1 Tunneler 1 | 1 . . . . Hauler 4 | . 2 . 2 . Recycler 1 | 1 . . . . Mechanic 1 | . 1 . . . Operator 1 | . . . 1 . Swarmer 5 | . . 5 . . Grunt 15 | . 6 . 9 . Sentry 2 | . . . 2 . Assembled 4 | . . . . 4 Best Kill Streak 4 | 2 3 3 3 4 Combat Bots Only 4 | . 2 3 3 4 Max Kills in Single Turn 1 | 1 1 1 1 1 Gunslinging . | . . . . . Exploded 1 | . . . 1 . Melee . | . . . . . Uniques/NPCs Destroyed . | . . . . . Combat | -11 -10 -10 -9 -9 -------- Run | Scr Mat Min Mat Min Damage Taken 2067 | . 551 242 324 950 Core 602 | . 158 43 47 354 Absorbed by Shields . | . . . . . Core Remaining (%) 59 | 100 . 19 . . Volleys Fired 130 | 6 70 12 30 12 Largest 2 | 2 2 2 2 2 Hottest 121 | 70 70 65 121 104 Shots Fired 222 | 12 104 22 60 24 Gun 197 | 12 104 22 47 12 Cannon 25 | . . . 13 12 Launcher . | . . . . . Special . | . . . . . Kinetic 140 | 6 76 19 27 12 Thermal 51 | 6 28 . 6 11 Explosive . | . . . . . Electromagnetic 31 | . . 3 27 1 Robot Hit Streak 10 | 5 6 6 10 9 Robot Miss Streak 10 | 1 3 5 2 10 Penetration Max . | . . . . . Secondary Targets 4 | . 1 2 1 . Max Gunslinging Chain 1 | . 1 1 1 . Shots Hit Robots 140 | 8 64 10 45 13 Core Hits 66 | 3 22 7 22 12 Critical Hits 1 | . 1 . . . Critical Kills . | . . . . . Critical Parts Destroyed 1 | . 1 . . . Melee Attacks . | . . . . . Impact . | . . . . . Slashing . | . . . . . Piercing . | . . . . . Sneak Attacks . | . . . . . Combat Hostiles . | . . . . . Follow-up Attacks . | . . . . . Damage Inflicted 1605 | 99 600 99 663 144 Guns 1353 | 99 600 99 479 76 Cannons 165 | . . . 102 63 Explosions 79 | . . . 79 . Melee . | . . . . . Ramming 8 | . . . 3 5 Kinetic 825 | 61 442 73 186 63 Thermal 373 | 38 158 . 114 63 Explosive . | . . . . . Electromagnetic 399 | . . 26 360 13 Impact . | . . . . . Slashing . | . . . . . Piercing . | . . . . . Highest Corruption 1 | . 1 1 . . Average Corruption 1 | . 1 1 . . Corruption Purged . | . . . . . Effects 4 | . 3 1 . . Message Errors 1 | . . 1 . . Targeting Errors 1 | . 1 . . . Weapon Failures 2 | . 2 . . . Overload Shots . | . . . . . Overflow Damage 14 | . . . 14 . Projectiles . | . . . . . Explosions 14 | . . . 14 . Melee . | . . . . . Knockbacks 3 | . . . 1 2 Impact . | . . . . . Kinetic 2 | . . . 1 1 Secondary 1 | . . . . 1 Self-Inflicted Damage 44 | . . . 42 2 Shots 2 | . . . 2 . Rammed 4 | . . . 1 3 Targets Rammed 4 | . . . 1 3 Kicked . | . . . . . Crushed . | . . . . . Highest Temperature 333 | 54 333 28 168 192 Average Temperature 96 | 28 151 13 34 125 Received Heat Transfer 688 | . 315 . 129 244 Effects 2 | . 2 . . . Shutdowns 1 | . 1 . . . Energy Bleed 1 | . 1 . . . Siege Activations . | . . . . . Robots Corrupted . | . . . . . Combat Hostiles . | . . . . . Parts Fried . | . . . . . Impact Corruptions . | . . . . . Robots Melted . | . . . . . Combat Hostiles . | . . . . . Parts Melted . | . . . . . Heat Transferred 856 | 111 481 . 184 80 Parts Sabotaged . | . . . . . Parts Stolen . | . . . . . Parts Stripped . | . . . . . Power Chain Reactions 2 | . . . 2 . Missiles Intercepted . | . . . . . Alert | -11 -10 -10 -9 -9 ------- Run | Scr Mat Min Mat Min Peak Influence 314 | 10 233 186 314 75 Initial 72 | . 6 46 72 70 Average 125 | 7 118 119 177 53 Maximum Alert Level 1 | . 1 . 1 . Low Security (%) 80 | 100 76 100 65 100 Level 1 19 | . 23 . 34 . Level 2 . | . . . . . Level 3 . | . . . . . Level 4 . | . . . . . Level 5 . | . . . . . High Security . | . . . . . Max Security . | . . . . . Squads Dispatched 3 | . 1 . 2 . Investigation 2 | . 1 . 1 . Extermination . | . . . . . Reinforcement 1 | . . . 1 . Assault . | . . . . . Garrison . | . . . . . Intercept . | . . . . . Construction Impeded . | . . . . . Haulers Reinforced . | . . . . . Stealth | -11 -10 -10 -9 -9 --------- Run | Scr Mat Min Mat Min Distress Signals 3 | . 2 . 1 . Communications Jammed . | . . . . . Distress Signals . | . . . . . Times Spotted 56 | . 24 6 16 10 Peak Tracking Total 6 | . 6 3 3 4 Tactical Retreats 5 | . 2 . 1 2 Traps | -11 -10 -10 -9 -9 ------- Run | Scr Mat Min Mat Min Traps Triggered 1 | . . . 1 . Indirectly . | . . . . . Trap Hack Attempts . | . . . . . Triggered . | . . . . . Disarmed . | . . . . . Reprogrammed . | . . . . . Reused . | . . . . . Traps Extracted . | . . . . . Installed . | . . . . . Triggered . | . . . . . Machines | -11 -10 -10 -9 -9 ---------- Run | Scr Mat Min Mat Min Machines Disabled . | . . . . . Max in Single Turn . | . . . . . Machines Sabotaged . | . . . . . Garrisons Compromised . | . . . . . Overloaded Fab Kills . | . . . . . Fab Network Shutdowns . | . . . . . Hacking | -11 -10 -10 -9 -9 --------- Run | Scr Mat Min Mat Min Machines Accessed 9 | . 6 . 3 . Terminals 7 | . 6 . 1 . Fabricators . | . . . . . Repair Stations . | . . . . . Recycling Units 1 | . . . 1 . Scanalyzers 1 | . . . 1 . Garrison Access . | . . . . . Total Hacks 30 | . 16 . 14 . Successful 21 | . 12 . 9 . Failed 9 | . 4 . 5 . Catastrophic . | . . . . . Database Lockouts . | . . . . . Manual 3 | . 2 . 1 . Terminals 21 | . 16 . 5 . Fabricators . | . . . . . Repair Stations . | . . . . . Recycling Units 3 | . . . 3 . Scanalyzers 6 | . . . 6 . Garrison Access . | . . . . . Terminal Hacks 13 | . 11 . 2 . Robot Analysis 2 | . 1 . 1 . Prototype ID Bank 1 | . 1 . . . Branch Access Points 1 | . 1 . . . Terminal Index 1 | . 1 . . . Locate Traps 1 | . 1 . . . Patrol Status 1 | . 1 . . . Hauler Manifests 2 | . 1 . 1 . Zone Layout 4 | . 4 . . . Fabricator Hacks . | . . . . . Repair Station Hacks . | . . . . . Recycling Unit Hacks 1 | . . . 1 . Report Inventory 1 | . . . 1 . Scanalyzer 6 | . . . 6 . Insert Component 3 | . . . 3 . Analyze 3 | . . . 3 . Garrison Access Hacks . | . . . . . Unauthorized Hacks 1 | . 1 . . . Terminals 1 | . 1 . . . Operators 1 | . 1 . . . Fabricators . | . . . . . Repair Stations . | . . . . . Recycling Units . | . . . . . Scanalyzers . | . . . . . Garrison Access . | . . . . . Data Cores Recovered . | . . . . . Used . | . . . . . Hacking Detections 8 | . 5 . 3 . Full Trace Events 1 | . 1 . . . Feedback Events 1 | . 1 . . . Corruption 1 | . 1 . . . Feedback Blocked . | . . . . . Robot Schematics Acquired . | . . . . . Robots Built . | . . . . . Matter . | . . . . . Time . | . . . . . Total Robot Build Rating . | . . . . . Part Schematics Acquired 3 | . . . 3 . Parts Built . | . . . . . Matter . | . . . . . Time . | . . . . . Total Part Build Rating . | . . . . . Parts Repaired . | . . . . . Time . | . . . . . Parts Recycled . | . . . . . Recycled Matter . | . . . . . Retrieved Matter . | . . . . . Retrieved Components . | . . . . . Parts Scanalyzed 3 | . . . 3 . Part Schematics Acquired 3 | . . . 3 . Parts Damaged . | . . . . . Bothacking | -11 -10 -10 -9 -9 ------------ Run | Scr Mat Min Mat Min Used RIF Installer . | . . . . . Robots Hacked . | . . . . . Non-combat . | . . . . . Combat . | . . . . . Robot Hacks Applied . | . . . . . Relay Couplers Released . | . . . . . Robots Rewired . | . . . . . Allies Hacked . | . . . . . Hacks Repelled . | . . . . . Allies | -11 -10 -10 -9 -9 -------- Run | Scr Mat Min Mat Min Total Allies . | . . . . . Largest Group . | . . . . . Highest-Rated Group . | . . . . . Highest-Rated Ally . | . . . . . Total Orders . | . . . . . Ally Attacks . | . . . . . Total Damage . | . . . . . Kills . | . . . . . Allies Corrupted . | . . . . . Allies Melted . | . . . . . Intel | -11 -10 -10 -9 -9 ------- Run | Scr Mat Min Mat Min Robot Analysis Total 2 | . 1 . 1 . Derelict Logs Recovered . | . . . . . Drone Launches . | . . . . . Drone Recoveries . | . . . . . Exploration | -11 -10 -10 -9 -9 ------------- Run | Scr Mat Min Mat Min Turns Passed 1491 | 50 557 204 487 193 Spaces Moved 920 | 22 357 157 200 184 Core 131 | . . . . 131 Treads 17 | . . . 17 . Legs 3 | 3 . . . . Wheels 769 | 19 357 157 183 53 Hover . | . . . . . Flight . | . . . . . Fastest Speed 50 | 100 90 100 110 50 Average Speed 103 | 102 99 104 137 75 Slowest Speed 220 | 120 100 110 220 150 Overloaded Moves . | . . . . . Propulsion Burnouts . | . . . . . Robots Hopped . | . . . . . Cave-ins Triggered . | . . . . . Exploration Rate (%) 36 | 4 60 55 17 44 Regions Visited 4 Branch Regions 2 Pre-discovered Areas . | . . . . . Known Exits Taken 1 | . 1 . . . Unknown Exits Taken 3 | 1 . 1 1 . Scrap Searched 4 | . . 2 . 2 Spaces Dug . | . . . . . Terrain Destroyed 8 | . . . 7 1 Melee . | . . . . . Projectile 3 | . . . 2 1 AOE 5 | . . . 5 . Terrain Rammed . | . . . . . Walls Destroyed . | . . . . . Machines Disabled . | . . . . . Actions | -11 -10 -10 -9 -9 --------- Run | Scr Mat Min Mat Min Total 1248 | 37 464 180 353 214 Wait 97 | 1 17 5 74 . Move 916 | 21 356 156 199 184 Hop . | . . . . . Pick Up 31 | 2 8 . 17 4 Fast Attach 9 | 2 2 1 4 . Attach 16 | . 3 1 8 4 Detach 4 | . . . 4 . Swap 20 | 1 4 2 9 4 Drop 21 | 4 4 3 7 3 Fire 130 | 6 70 12 30 12 Melee . | . . . . . Ram 3 | . . . . 3 Kick . | . . . . . Crush 1 | . . . 1 . Escape Stasis . | . . . . . Rewire . | . . . . . Trap . | . . . . . Miscellaneous . | . . . . . Route ------- -11/Scrapyard -10/Materials (discovered 3 exits: *Mat / *Min x2) -10/Mines -9/Materials -9/Mines (discovered 1 exit: [*Mat]) History --------- Turn | Location | Event 20 | -11/Scrapyard | Discovered new exit (range 3) 51 | -11/Scrapyard | Entered Materials 65 | -10/Materials | Discovered new exit (range 15) 198 | -10/Materials | Core integrity fell below 50% 325 | -10/Materials | Build established: Mutant 456 | -10/Materials | Discovered new exit (range 13) 459 | -10/Materials | Identified exit to Mines 608 | -10/Materials | Entered Mines 757 | -10/Mines | Core integrity fell below 20% 806 | -10/Mines | Discovered new exit (range 7) 812 | -10/Mines | Entered Materials 812 | -9/Materials | Evolved 2 slots: Utility x2 971 | -9/Materials | Lost 3 parts (1u2w) 1242 | -9/Materials | Discovered new exit (range 4) 1299 | -9/Materials | Entered Mines 1329 | -9/Mines | Assembled infested the area 1334 | -9/Mines | Found a hidden stash of uninstalled traps 1423 | -9/Mines | Core integrity fell below 50% 1425 | -9/Mines | Core integrity fell below 20% 1452 | -9/Mines | Lost 6 parts (1p2n1u2w) 1470 | -9/Mines | Discovered new exit (range 12) 1492 | -9/Mines | Destroyed by G-34 Mercenary with Small Laser Last Messages --------------- 01422_ U-05 Engineer lays Concrete. 01422_ Dropped ECM Suite. 01423_ U-05 Engineer builds a Wall. 01423_ Dropped Hcp. Storage Unit. 01424_ The unstable cave ceiling collapses. 01424_ Dropped Lrg. Storage Unit. 01425_ The unstable cave ceiling collapses. 01438_ K-01 Serf collects debris. 01447_ Searching scrap... 01447_ Found Field Recycling Unit. 01447_ Found 24 Matter. 01448_ Acquired 24 matter. 01449_ K-01 Serf collects debris. 01450_ U-05 Engineer lays Concrete. 01454_ U-05 Engineer builds a Wall. 01456_ Acquired 13 matter. 01458_ U-05 Engineer builds a Wall. 01470_ EXIT=FOUND 01478_ K-01 Serf collects debris. 01488_ Slammed into G-34 Mercenary. Map ----- +----------------------------------------------------+ | ???????????????????????????????????????????? | | ???????????????????????????????????????????? | | ???????????????????????????????????????????? | | ???????????????????????????????????????????? | | ???????????????????????????????????????????? | | ???????????????????????????????????????????? | | ????####???????????????????????????????????? | | ???## ##??????????????????????????????????? | | ??## #??????????????????????????????????? | | ??# #??????????????????????????????????? | | ??# #??????????????????????????????????? | | ???# #???????????????????????????????????? | | ???# #??????????? ???????????????????????? | | ??## #????## ??????????????????????? | | ??# ##??# ??????????????????????? | | ??# ### #??????????????????????? | | ?## #???????????????????????? | | ?# #??????????????????????????? | | ?# """ ##??????????????????????????? | | ?## """ ##???????????????????????????? | | ??### """ ##??????????????????????????##? | | ????# ## #??????????????????????????? ? | | ????# ##### #??????????????????????????? # | | ????# ###?# #?#########????????????????# | | ????# #?# #?# #????????????????# # | | ????# ### ### @ < #????????????????# # | | ????### g #????????????????# # | | ??????##### #### #????????????????# # | | ??????????# #??#### ####????????????????# # | | ????####### #?????# # ###???????????##### # | | ????# #?????# # ###?????????? # # | | ????# #######?????#%#? #??????????? | | ????# #?????????###%### #???????????? | | ????# #?######### # #????????????? | | ????# ### ## ## #??????######## | | ????# ## #??????# | | ????# ## ##?????# ! | | ????# # # ####### #### | | ????##### ### # ## #??# | | ????????## ##?## #??# | | ?????????## ##???# #?## | | ??????????#### ##????## " #??# | | ?????????????####??????## ### #?# | | ????????????????????????#######?### #?# | | ??????????????????????????????????# #?## # | | ??????????????????????????????????? #??## # | | ??????????????????????????????????? #???# # | | ??????????????????????????????????? ??? # | | ??????????????????????????????????? ##??### | | ???????????????????????????????????###?????? | +----------------------------------------------------+ Best States ------------- Heat Dissipation 28 Coolant Potential 50 Energy Generation 14 Energy Capacity 280 Matter Stores 300 Matter Capacity 300 Sight Range 16 Terrain Scan Range 16 Terrain Scan Density 10 ECM Strength 1 Armor Coverage 225 Evasion (%) 50 Recoil Reduction 1 Offensive Hacking 10 Item Schematics ----------------- Hcp. Storage Unit | -9/Materials | Scanalyzed Imp. Flight Unit | -9/Materials | Scanalyzed Hvy. EM Pulse Gun | -9/Materials | Scanalyzed Robot Schematics ------------------ None Fabricated ------------ Nothing Alien Tech Used ----------------- None Achievements -------------- None Challenges ------------ None Game ------ Seed ChainShieldSink Manual? 0 Play Time 00:40:09 Cumulative 143.7 hours Start 2021.08.22 @ 10:14:46 End 2021.08.28 @ 12:58:57 Sessions 3 Manual Loads 0 Difficulty Rogue Special Mode None Game No. 54 Rogue 51 Adventurer 0 Explorer 3 Win Type - Total 2 Types 2/0/0/0/0/0/0/0/0 Lore% 43 Gallery% 60 Achievement% 40 Wizard Run 0 Options --------- ASCII 0 Keyboard 0 Movement Numpad Keybinds 0 Fullscreen 1 Font 18/SmallcapsGlow Map View 76x50 Tactical HUD 1 Map Filters NONE Filters NONE Steam 1 RUN: 03633d4b-439a-4e8d-9afe-c4758cdb9f98